[Event "Late-Titled-Tuesday-Blitz-February-27-2024"]
[Site "Chess.com"]
[Date "2024.02.27"]
[Round "11"]
[White "FredddieCroderg"]
[Black "Peroncio"]
[Result "1-0"]
[WhiteElo "2305"]
[BlackElo "2384"]
[TimeControl "180+1"]
[EndTime "16:03:58 PST"]
[Termination "FredddieCroderg won by resignation"]

1. e4 {[%clk 0:03:00.9]} 1... c5 {[%clk 0:02:56.9]} 2. Bc4 {[%clk 0:03:00.6]}
2... e6 {[%clk 0:02:56.8]} 3. Qf3 {[%clk 0:03:00.5]} 3... Nc6 {[%clk 0:02:54.3]}
4. d3 {[%clk 0:03:00.8]} 4... Nf6 {[%clk 0:02:49.2]} 5. Nc3 {[%clk 0:02:59.7]}
5... Be7 {[%clk 0:02:48.7]} 6. Qg3 {[%clk 0:02:58.9]} 6... O-O {[%clk
0:02:47.3]} 7. e5 {[%clk 0:02:54.7]} 7... Ne8 {[%clk 0:02:45.2]} 8. f4 {[%clk
0:02:48.8]} 8... d5 {[%clk 0:02:43.4]} 9. Bb3 {[%clk 0:02:46.2]} 9... b5 {[%clk
0:02:42]} 10. a4 {[%clk 0:02:34.8]} 10... b4 {[%clk 0:02:37.2]} 11. Nce2 {[%clk
0:02:32.5]} 11... a5 {[%clk 0:02:37.4]} 12. Nf3 {[%clk 0:02:30.3]} 12... Ba6
{[%clk 0:02:37.1]} 13. O-O {[%clk 0:02:14.3]} 13... c4 {[%clk 0:02:37]} 14. dxc4
{[%clk 0:02:14.2]} 14... dxc4 {[%clk 0:02:37.9]} 15. Ba2 {[%clk 0:02:13.4]}
15... Nc7 {[%clk 0:02:29.6]} 16. c3 {[%clk 0:02:08.4]} 16... Nd5 {[%clk
0:02:28.5]} 17. Kh1 {[%clk 0:02:03.3]} 17... f5 {[%clk 0:02:18.4]} 18. exf6
{[%clk 0:02:01.8]} 18... Bxf6 {[%clk 0:02:18.6]} 19. Bb1 {[%clk 0:01:50.6]}
19... bxc3 {[%clk 0:02:14]} 20. bxc3 {[%clk 0:01:49.2]} 20... Nxc3 {[%clk
0:02:14.5]} 21. Nxc3 {[%clk 0:01:48.9]} 21... Bxc3 {[%clk 0:02:15.4]} 22. Ra2
{[%clk 0:01:44.2]} 22... Bf6 {[%clk 0:02:15.1]} 23. Qh3 {[%clk 0:01:33.6]} 23...
Qd5 {[%clk 0:01:44]} 24. Qxh7+ {[%clk 0:01:29.3]} 24... Kf7 {[%clk 0:01:44.5]}
25. Qg6+ {[%clk 0:01:23.7]} 25... Ke7 {[%clk 0:01:35.3]} 26. Be4 {[%clk
0:01:20.8]} 26... Qd7 {[%clk 0:01:21.2]} 27. Ba3+ {[%clk 0:01:16.6]} 27... Kd8
{[%clk 0:01:21.4]} 28. Rd2 {[%clk 0:01:05.9]} 28... c3 {[%clk 0:01:19]} 29.
Rxd7+ {[%clk 0:01:04.3]} 29... Kxd7 {[%clk 0:01:19.9]} 30. Bxf8 {[%clk 0:01:03]}
30... Rxf8 {[%clk 0:01:20.8]} 31. Rd1+ {[%clk 0:01:01.3]} 31... Kc7 {[%clk
0:01:19.8]} 32. Bxc6 {[%clk 0:00:59.2]} 32... Kxc6 {[%clk 0:01:19.9]} 33. Ne5+
{[%clk 0:00:58.9]} 33... Kb7 {[%clk 0:01:13.7]} 34. Qe4+ {[%clk 0:00:57.2]} 1-0

[Event "Late-Titled-Tuesday-Blitz-February-27-2024"]
[Site "Chess.com"]
[Date "2024.02.27"]
[Round "11"]
[White "Nick12772"]
[Black "campochess"]
[Result "1-0"]
[WhiteElo "2382"]
[BlackElo "2213"]
[TimeControl "180+1"]
[EndTime "16:04:00 PST"]
[Termination "Nick12772 won by resignation"]

1. Nf3 {[%clk 0:03:00.9]} 1... c5 {[%clk 0:02:56.2]} 2. g3 {[%clk 0:03:01.4]}
2... Nc6 {[%clk 0:02:56]} 3. d4 {[%clk 0:03:02.1]} 3... cxd4 {[%clk 0:02:54.2]}
4. Nxd4 {[%clk 0:03:03]} 4... d5 {[%clk 0:02:53.4]} 5. Bg2 {[%clk 0:03:02.8]}
5... e5 {[%clk 0:02:53]} 6. Nxc6 {[%clk 0:03:03.1]} 6... bxc6 {[%clk 0:02:52.5]}
7. c4 {[%clk 0:03:03.8]} 7... Be6 {[%clk 0:02:52.2]} 8. Nc3 {[%clk 0:03:03.4]}
8... Nf6 {[%clk 0:02:50.2]} 9. Bg5 {[%clk 0:03:02.7]} 9... Bb4 {[%clk
0:02:49.9]} 10. cxd5 {[%clk 0:03:01.7]} 10... Bxc3+ {[%clk 0:02:48.1]} 11. bxc3
{[%clk 0:03:02.6]} 11... cxd5 {[%clk 0:02:48]} 12. Qa4+ {[%clk 0:02:55.8]} 12...
Qd7 {[%clk 0:02:43.1]} 13. Qxd7+ {[%clk 0:02:55]} 13... Nxd7 {[%clk 0:02:43.1]}
14. O-O {[%clk 0:02:45]} 14... Rc8 {[%clk 0:02:42.3]} 15. Rfd1 {[%clk
0:02:45.1]} 15... Nb6 {[%clk 0:02:32.4]} 16. Be3 {[%clk 0:02:43.6]} 16... Rxc3
{[%clk 0:02:25.6]} 17. Bxb6 {[%clk 0:02:42.9]} 17... axb6 {[%clk 0:02:25.4]} 18.
Bxd5 {[%clk 0:02:43.5]} 18... Bxd5 {[%clk 0:02:24.1]} 19. Rxd5 {[%clk
0:02:44.4]} 19... f6 {[%clk 0:02:22.5]} 20. Rb5 {[%clk 0:02:38]} 20... O-O
{[%clk 0:02:15.6]} 21. Rxb6 {[%clk 0:02:37]} 21... Ra8 {[%clk 0:02:15.2]} 22. a4
{[%clk 0:02:34.8]} 22... Ra5 {[%clk 0:02:13.8]} 23. Rb5 {[%clk 0:02:26.7]} 23...
Ra6 {[%clk 0:02:10.8]} 24. a5 {[%clk 0:02:25.1]} 24... Rc2 {[%clk 0:02:09.9]}
25. e3 {[%clk 0:02:24.2]} 25... Rcc6 {[%clk 0:01:47.4]} 26. Rab1 {[%clk
0:02:19.3]} 26... h5 {[%clk 0:01:45.8]} 27. Rb6 {[%clk 0:02:10.5]} 27... Rcxb6
{[%clk 0:01:32.5]} 28. axb6 {[%clk 0:02:09.6]} 28... Ra8 {[%clk 0:01:32.4]} 29.
h4 {[%clk 0:02:01.4]} 29... Kf7 {[%clk 0:01:31.8]} 30. Kg2 {[%clk 0:01:57.5]}
30... Ke6 {[%clk 0:01:31.3]} 31. Kf3 {[%clk 0:01:58.1]} 31... f5 {[%clk
0:01:31.3]} 32. b7 {[%clk 0:01:55.2]} 32... Rb8 {[%clk 0:01:30.5]} 33. Rb6+
{[%clk 0:01:55.5]} 33... Ke7 {[%clk 0:01:27.6]} 34. e4 {[%clk 0:01:49.9]} 34...
fxe4+ {[%clk 0:01:20.7]} 35. Kxe4 {[%clk 0:01:50.8]} 35... Kd7 {[%clk 0:01:20]}
36. Rg6 {[%clk 0:01:46.5]} 36... Kc7 {[%clk 0:01:12.3]} 37. Rxg7+ {[%clk
0:01:46.7]} 37... Kd6 {[%clk 0:01:12.3]} 38. Kf5 {[%clk 0:01:35.4]} 38... Kd5
{[%clk 0:01:10.6]} 39. Kg5 {[%clk 0:01:32.9]} 39... Ke4 {[%clk 0:01:04.8]} 40.
Rf7 {[%clk 0:01:26.2]} 40... Kd5 {[%clk 0:01:02.6]} 41. Kxh5 {[%clk 0:01:24.7]}
41... Ke6 {[%clk 0:01:02.6]} 42. Rc7 {[%clk 0:01:21.5]} 1-0

[Event "Late-Titled-Tuesday-Blitz-February-27-2024"]
[Site "Chess.com"]
[Date "2024.02.27"]
[Round "11"]
[White "BardArtem"]
[Black "VitorBronson"]
[Result "1-0"]
[WhiteElo "2706"]
[BlackElo "2487"]
[TimeControl "180+1"]
[EndTime "16:04:14 PST"]
[Termination "BardArtem won by checkmate"]

1. d4 {[%clk 0:02:59.8]} 1... d5 {[%clk 0:02:57.1]} 2. c4 {[%clk 0:02:58.9]}
2... c6 {[%clk 0:02:56.6]} 3. Nf3 {[%clk 0:02:58.8]} 3... Nf6 {[%clk 0:02:56.5]}
4. Bf4 {[%clk 0:02:56]} 4... dxc4 {[%clk 0:02:50.8]} 5. e3 {[%clk 0:02:56]} 5...
Nd5 {[%clk 0:02:50.5]} 6. Bg3 {[%clk 0:02:55.8]} 6... b5 {[%clk 0:02:50]} 7. Be2
{[%clk 0:02:54.2]} 7... e6 {[%clk 0:02:49.9]} 8. O-O {[%clk 0:02:54.4]} 8... Bd6
{[%clk 0:02:49.2]} 9. Bxd6 {[%clk 0:02:52.9]} 9... Qxd6 {[%clk 0:02:48.8]} 10.
b3 {[%clk 0:02:49.4]} 10... cxb3 {[%clk 0:02:44.1]} 11. axb3 {[%clk 0:02:50.3]}
11... Nd7 {[%clk 0:02:38.7]} 12. Nbd2 {[%clk 0:02:48.5]} 12... Bb7 {[%clk
0:02:37]} 13. Ne4 {[%clk 0:02:42]} 13... Qe7 {[%clk 0:02:36.7]} 14. Qd2 {[%clk
0:02:35.7]} 14... O-O {[%clk 0:02:34.4]} 15. Rfc1 {[%clk 0:02:35.6]} 15... a6
{[%clk 0:02:30.4]} 16. Nc5 {[%clk 0:02:35.3]} 16... Nxc5 {[%clk 0:02:30.7]} 17.
Rxc5 {[%clk 0:02:36.2]} 17... Nf6 {[%clk 0:02:28.9]} 18. Bd3 {[%clk 0:02:30.4]}
18... Nd7 {[%clk 0:02:28.1]} 19. Rac1 {[%clk 0:02:01.3]} 19... Nxc5 {[%clk
0:02:25]} 20. Rxc5 {[%clk 0:02:02.2]} 20... a5 {[%clk 0:01:57.4]} 21. Qc2 {[%clk
0:02:00.9]} 21... g6 {[%clk 0:01:53]} 22. h4 {[%clk 0:01:54.7]} 22... a4 {[%clk
0:01:42.2]} 23. bxa4 {[%clk 0:01:55.6]} 23... Rxa4 {[%clk 0:01:42.7]} 24. h5
{[%clk 0:01:52.6]} 24... Rfa8 {[%clk 0:01:42.8]} 25. hxg6 {[%clk 0:01:38.6]}
25... hxg6 {[%clk 0:01:43.7]} 26. Bxg6 {[%clk 0:01:39.2]} 26... Ra1+ {[%clk
0:01:32.9]} 27. Kh2 {[%clk 0:01:39]} 27... R8a2 {[%clk 0:00:58.4]} 28. Qe4
{[%clk 0:01:23.4]} 28... Rxf2 {[%clk 0:00:50.5]} 29. Rg5 {[%clk 0:01:17.3]}
29... f6 {[%clk 0:00:38.3]} 30. Bh7+ {[%clk 0:01:11.7]} 30... Kf7 {[%clk
0:00:37.3]} 31. Qg6+ {[%clk 0:01:11.6]} 31... Kf8 {[%clk 0:00:37.9]} 32. Qg8#
{[%clk 0:01:12.5]} 1-0

[Event "Late-Titled-Tuesday-Blitz-February-27-2024"]
[Site "Chess.com"]
[Date "2024.02.27"]
[Round "11"]
[White "KATPAH"]
[Black "zsizsi99"]
[Result "1-0"]
[WhiteElo "2670"]
[BlackElo "2509"]
[TimeControl "180+1"]
[EndTime "16:04:15 PST"]
[Termination "KATPAH won by checkmate"]

1. e4 {[%clk 0:02:58.9]} 1... c5 {[%clk 0:02:50]} 2. d4 {[%clk 0:02:58.4]} 2...
cxd4 {[%clk 0:02:46.4]} 3. c3 {[%clk 0:02:59]} 3... Nf6 {[%clk 0:02:46.9]} 4. e5
{[%clk 0:02:59.1]} 4... Nd5 {[%clk 0:02:46.2]} 5. Bc4 {[%clk 0:02:59.7]} 5...
Nb6 {[%clk 0:02:43.7]} 6. Bb3 {[%clk 0:02:59.5]} 6... d6 {[%clk 0:02:42.1]} 7.
exd6 {[%clk 0:02:58.5]} 7... dxc3 {[%clk 0:02:36.1]} 8. Nxc3 {[%clk 0:02:56.6]}
8... Qxd6 {[%clk 0:02:33.1]} 9. Qxd6 {[%clk 0:02:56.5]} 9... exd6 {[%clk
0:02:33.8]} 10. Nf3 {[%clk 0:02:57]} 10... Be7 {[%clk 0:02:28]} 11. Bf4 {[%clk
0:02:53.5]} 11... Be6 {[%clk 0:02:23.2]} 12. O-O-O {[%clk 0:02:51.6]} 12... Bxb3
{[%clk 0:02:13.8]} 13. axb3 {[%clk 0:02:52.5]} 13... d5 {[%clk 0:02:06.3]} 14.
Rhe1 {[%clk 0:02:50]} 14... Nc6 {[%clk 0:02:02.1]} 15. Ne5 {[%clk 0:02:23.2]}
15... Rc8 {[%clk 0:01:52.3]} 16. Kb1 {[%clk 0:02:14.8]} 16... Nb4 {[%clk
0:01:13]} 17. Nd3 {[%clk 0:02:03.8]} 17... Nc6 {[%clk 0:01:00.1]} 18. Ne5 {[%clk
0:02:04]} 18... Nb4 {[%clk 0:01:00]} 19. Nf3 {[%clk 0:02:04.5]} 19... Nc6 {[%clk
0:00:57.7]} 20. Nd4 {[%clk 0:02:04.6]} 20... Kd7 {[%clk 0:00:48.6]} 21. Nf5
{[%clk 0:01:59.3]} 21... Bb4 {[%clk 0:00:43]} 22. Nxd5 {[%clk 0:01:54.7]} 22...
Bxe1 {[%clk 0:00:42.9]} 23. Nxb6+ {[%clk 0:01:51.4]} 23... Ke6 {[%clk
0:00:42.9]} 24. Nxg7+ {[%clk 0:01:40.6]} 24... Kf6 {[%clk 0:00:39.4]} 25. Nxc8
{[%clk 0:01:24.1]} 25... Bxf2 {[%clk 0:00:39.5]} 26. Rd6+ {[%clk 0:01:11.4]}
26... Kxg7 {[%clk 0:00:30.7]} 27. Bh6+ {[%clk 0:01:10.8]} 27... Kg8 {[%clk
0:00:29]} 28. Rd8+ {[%clk 0:01:10.3]} 28... Nxd8 {[%clk 0:00:28.6]} 29. Ne7#
{[%clk 0:01:10.4]} 1-0

[Event "Late-Titled-Tuesday-Blitz-February-27-2024"]
[Site "Chess.com"]
[Date "2024.02.27"]
[Round "11"]
[White "The_Machine04"]
[Black "vugarrasulov"]
[Result "1-0"]
[WhiteElo "2830"]
[BlackElo "2970"]
[TimeControl "180+1"]
[EndTime "16:04:23 PST"]
[Termination "The_Machine04 won on time"]

1. d4 {[%clk 0:02:58.8]} 1... a6 {[%clk 0:03:00.9]} 2. Nf3 {[%clk 0:02:58.6]}
2... b5 {[%clk 0:03:01.1]} 3. e4 {[%clk 0:02:59.1]} 3... Bb7 {[%clk 0:03:01.4]}
4. Nbd2 {[%clk 0:02:59.8]} 4... g6 {[%clk 0:03:01.6]} 5. c3 {[%clk 0:02:59.9]}
5... Bg7 {[%clk 0:03:02]} 6. Bd3 {[%clk 0:03:00.6]} 6... d6 {[%clk 0:03:01.7]}
7. O-O {[%clk 0:03:00.7]} 7... c5 {[%clk 0:02:59.5]} 8. b3 {[%clk 0:03:00.7]}
8... Nf6 {[%clk 0:02:58.4]} 9. Bb2 {[%clk 0:03:00.2]} 9... O-O {[%clk
0:02:58.6]} 10. a3 {[%clk 0:03:00.3]} 10... Nc6 {[%clk 0:02:58.6]} 11. Qe2
{[%clk 0:02:59.1]} 11... Rc8 {[%clk 0:02:54.5]} 12. Rac1 {[%clk 0:02:58.6]}
12... Bh6 {[%clk 0:02:51.4]} 13. Rfd1 {[%clk 0:02:57.4]} 13... e5 {[%clk
0:02:49.3]} 14. d5 {[%clk 0:02:57.1]} 14... Nb8 {[%clk 0:02:48.2]} 15. Ra1
{[%clk 0:02:47.3]} 15... Nbd7 {[%clk 0:02:46.9]} 16. a4 {[%clk 0:02:46.4]} 16...
c4 {[%clk 0:02:47.1]} 17. bxc4 {[%clk 0:02:45.6]} 17... bxa4 {[%clk 0:02:47.8]}
18. Rxa4 {[%clk 0:02:40]} 18... Nc5 {[%clk 0:02:48.4]} 19. Raa1 {[%clk
0:02:39.8]} 19... a5 {[%clk 0:02:47.4]} 20. Ba3 {[%clk 0:02:39.1]} 20... Nfd7
{[%clk 0:02:47.4]} 21. Bc2 {[%clk 0:02:38.2]} 21... Ba6 {[%clk 0:02:47.6]} 22.
Nb3 {[%clk 0:02:34.5]} 22... Nxb3 {[%clk 0:02:34.5]} 23. Bxb3 {[%clk 0:02:35.4]}
23... Nc5 {[%clk 0:02:34.8]} 24. Bxc5 {[%clk 0:02:25.2]} 24... Rxc5 {[%clk
0:02:35.7]} 25. Ne1 {[%clk 0:02:25.2]} 25... Qb6 {[%clk 0:02:30.3]} 26. Rdb1
{[%clk 0:02:22.2]} 26... Rfc8 {[%clk 0:02:30.9]} 27. Nd3 {[%clk 0:02:18.7]}
27... R5c7 {[%clk 0:02:31.5]} 28. Qa2 {[%clk 0:02:07.8]} 28... Rb8 {[%clk
0:02:10.2]} 29. c5 {[%clk 0:01:55.6]} 29... dxc5 {[%clk 0:02:03.5]} 30. Bc4
{[%clk 0:01:53.4]} 30... Qa7 {[%clk 0:01:51.2]} 31. Rxb8+ {[%clk 0:01:51.6]}
31... Qxb8 {[%clk 0:01:52.1]} 32. Bxa6 {[%clk 0:01:51.4]} 32... c4 {[%clk
0:01:51]} 33. Bxc4 {[%clk 0:01:47.9]} 33... Qc8 {[%clk 0:01:50.9]} 34. Nxe5
{[%clk 0:01:42.8]} 1-0

[Event "Late-Titled-Tuesday-Blitz-February-27-2024"]
[Site "Chess.com"]
[Date "2024.02.27"]
[Round "11"]
[White "NMJeevanK"]
[Black "Matalon"]
[Result "0-1"]
[WhiteElo "2601"]
[BlackElo "2484"]
[TimeControl "180+1"]
[EndTime "16:04:30 PST"]
[Termination "Matalon won by resignation"]

1. g3 {[%clk 0:03:00.9]} 1... g6 {[%clk 0:02:56.8]} 2. Bg2 {[%clk 0:03:01.2]}
2... Bg7 {[%clk 0:02:57.2]} 3. Nc3 {[%clk 0:03:01.5]} 3... c5 {[%clk 0:02:55.6]}
4. Nf3 {[%clk 0:03:01.3]} 4... Nc6 {[%clk 0:02:55]} 5. O-O {[%clk 0:03:01.3]}
5... Nf6 {[%clk 0:02:54.3]} 6. a3 {[%clk 0:03:00.9]} 6... O-O {[%clk 0:02:52.7]}
7. e4 {[%clk 0:03:00.9]} 7... d6 {[%clk 0:02:50.7]} 8. Re1 {[%clk 0:02:59]} 8...
Rb8 {[%clk 0:02:39]} 9. d3 {[%clk 0:02:51.5]} 9... b5 {[%clk 0:02:37.6]} 10. Rb1
{[%clk 0:02:37]} 10... a5 {[%clk 0:02:35]} 11. Nd5 {[%clk 0:02:32.5]} 11... Bg4
{[%clk 0:02:18.9]} 12. h3 {[%clk 0:02:25]} 12... Bxf3 {[%clk 0:02:18]} 13. Nxf6+
{[%clk 0:02:23.5]} 13... Bxf6 {[%clk 0:02:15.7]} 14. Qxf3 {[%clk 0:02:24.1]}
14... b4 {[%clk 0:02:10]} 15. Bh6 {[%clk 0:02:23.9]} 15... Re8 {[%clk
0:02:09.9]} 16. axb4 {[%clk 0:02:11.3]} 16... axb4 {[%clk 0:02:09.6]} 17. Qd1
{[%clk 0:02:03.2]} 17... Nd4 {[%clk 0:01:58.6]} 18. f4 {[%clk 0:01:58.6]} 18...
b3 {[%clk 0:01:50.7]} 19. c3 {[%clk 0:01:49.8]} 19... Nc2 {[%clk 0:01:50.1]} 20.
Re2 {[%clk 0:01:49.3]} 20... Qc7 {[%clk 0:01:39.6]} 21. f5 {[%clk 0:01:37.1]}
21... Be5 {[%clk 0:01:36.3]} 22. g4 {[%clk 0:01:16.5]} 22... Ra8 {[%clk
0:01:32.4]} 23. Rxc2 {[%clk 0:01:09.5]} 23... bxc2 {[%clk 0:01:31.1]} 24. Qxc2
{[%clk 0:01:10.4]} 24... Ra2 {[%clk 0:01:24.8]} 25. fxg6 {[%clk 0:01:04.3]}
25... hxg6 {[%clk 0:01:23.8]} 26. Rf1 {[%clk 0:00:59]} 26... Rb8 {[%clk
0:01:18.9]} 27. Qf2 {[%clk 0:00:57.2]} 27... e6 {[%clk 0:01:18.9]} 28. d4 {[%clk
0:00:30.2]} 28... cxd4 {[%clk 0:01:18.2]} 29. cxd4 {[%clk 0:00:30]} 29... Rbxb2
{[%clk 0:01:18.8]} 30. dxe5 {[%clk 0:00:18.2]} 30... Rxf2 {[%clk 0:01:15.8]} 31.
Rxf2 {[%clk 0:00:19.1]} 31... Qc5 {[%clk 0:01:15.4]} 0-1

[Event "Late-Titled-Tuesday-Blitz-February-27-2024"]
[Site "Chess.com"]
[Date "2024.02.27"]
[Round "11"]
[White "EvilMorty23"]
[Black "IMRosen"]
[Result "1-0"]
[WhiteElo "2602"]
[BlackElo "2680"]
[TimeControl "180+1"]
[EndTime "16:04:44 PST"]
[Termination "EvilMorty23 won by checkmate"]

1. e4 {[%clk 0:02:57.9]} 1... c5 {[%clk 0:02:58.5]} 2. Nf3 {[%clk 0:02:57.9]}
2... Nc6 {[%clk 0:02:58.1]} 3. c3 {[%clk 0:02:57.8]} 3... d5 {[%clk 0:02:57.8]}
4. exd5 {[%clk 0:02:58.7]} 4... Qxd5 {[%clk 0:02:58.4]} 5. d4 {[%clk 0:02:59.3]}
5... Nf6 {[%clk 0:02:58.1]} 6. Be2 {[%clk 0:02:58.7]} 6... e6 {[%clk 0:02:58.3]}
7. Na3 {[%clk 0:02:57.5]} 7... Be7 {[%clk 0:02:53.8]} 8. Nb5 {[%clk 0:02:56.5]}
8... Qd8 {[%clk 0:02:54.1]} 9. dxc5 {[%clk 0:02:53.1]} 9... Bxc5 {[%clk
0:02:47.1]} 10. Qxd8+ {[%clk 0:02:44]} 10... Kxd8 {[%clk 0:02:48]} 11. Bf4
{[%clk 0:02:43.3]} 11... Ne4 {[%clk 0:02:38.6]} 12. O-O-O+ {[%clk 0:02:35.1]}
12... Ke7 {[%clk 0:02:38.5]} 13. Nc7 {[%clk 0:02:25.7]} 13... Rb8 {[%clk
0:02:38.6]} 14. Rhe1 {[%clk 0:02:11.8]} 14... Bxf2 {[%clk 0:01:53.9]} 15. Bd3
{[%clk 0:01:27.6]} 15... Bxe1 {[%clk 0:01:51.2]} 16. Bxe4 {[%clk 0:01:28.1]}
16... Bf2 {[%clk 0:01:42.5]} 17. Bd6+ {[%clk 0:01:17]} 17... Kf6 {[%clk
0:01:39]} 18. Rf1 {[%clk 0:01:17]} 18... Be3+ {[%clk 0:01:36.3]} 19. Kb1 {[%clk
0:01:14.3]} 19... g6 {[%clk 0:00:46]} 20. Ne5+ {[%clk 0:00:53.6]} 20... Kg7
{[%clk 0:00:40.5]} 21. Rxf7+ {[%clk 0:00:53.6]} 21... Kg8 {[%clk 0:00:27.7]} 22.
Ne8 {[%clk 0:00:50.9]} 22... Nxe5 {[%clk 0:00:03.5]} 23. Rg7# {[%clk 0:00:49.6]}
1-0

[Event "Late-Titled-Tuesday-Blitz-February-27-2024"]
[Site "Chess.com"]
[Date "2024.02.27"]
[Round "11"]
[White "xakevicius91"]
[Black "picturesquecheck"]
[Result "1-0"]
[WhiteElo "2575"]
[BlackElo "2428"]
[TimeControl "180+1"]
[EndTime "16:04:45 PST"]
[Termination "xakevicius91 won by resignation"]

1. e4 {[%clk 0:03:00.9]} 1... c5 {[%clk 0:02:59.8]} 2. Nf3 {[%clk 0:03:00.8]}
2... d6 {[%clk 0:03:00.3]} 3. d4 {[%clk 0:03:01.4]} 3... cxd4 {[%clk 0:03:00.9]}
4. Nxd4 {[%clk 0:03:02.3]} 4... Nf6 {[%clk 0:03:01.2]} 5. Nc3 {[%clk 0:03:03]}
5... a6 {[%clk 0:03:01.4]} 6. f3 {[%clk 0:03:03.3]} 6... e5 {[%clk 0:03:00.9]}
7. Nb3 {[%clk 0:03:03.9]} 7... Be7 {[%clk 0:03:01.4]} 8. Be3 {[%clk 0:03:04.6]}
8... Be6 {[%clk 0:03:00.8]} 9. Qd2 {[%clk 0:03:05.2]} 9... h5 {[%clk 0:03:01.1]}
10. Nd5 {[%clk 0:03:05.5]} 10... Bxd5 {[%clk 0:03:00.5]} 11. exd5 {[%clk
0:03:06.4]} 11... Nbd7 {[%clk 0:03:00.8]} 12. Be2 {[%clk 0:03:06.8]} 12... Nb6
{[%clk 0:02:59.1]} 13. c4 {[%clk 0:03:06.1]} 13... Rc8 {[%clk 0:02:59]} 14. Na5
{[%clk 0:03:06.5]} 14... Qc7 {[%clk 0:02:56.7]} 15. b4 {[%clk 0:03:04.8]} 15...
O-O {[%clk 0:02:49.6]} 16. O-O {[%clk 0:03:03.7]} 16... Bd8 {[%clk 0:02:25]} 17.
Rac1 {[%clk 0:03:02.2]} 17... Qe7 {[%clk 0:02:23.5]} 18. Rfd1 {[%clk 0:03:01.5]}
18... Na8 {[%clk 0:02:21.2]} 19. Nb3 {[%clk 0:03:00.6]} 19... Bb6 {[%clk
0:02:18]} 20. c5 {[%clk 0:03:00.9]} 20... Ba7 {[%clk 0:02:15]} 21. c6 {[%clk
0:02:57.3]} 21... Bxe3+ {[%clk 0:02:13]} 22. Qxe3 {[%clk 0:02:57.2]} 22... b5
{[%clk 0:02:07.4]} 23. Na5 {[%clk 0:02:50.7]} 23... Nc7 {[%clk 0:02:06.7]} 24.
a4 {[%clk 0:02:50.4]} 24... Ncxd5 {[%clk 0:02:05.1]} 25. Qd2 {[%clk 0:02:41.5]}
25... bxa4 {[%clk 0:01:48.1]} 26. Bxa6 {[%clk 0:02:40.3]} 26... Rb8 {[%clk
0:01:48.4]} 27. b5 {[%clk 0:02:35.7]} 27... a3 {[%clk 0:01:44.6]} 28. Bb7 {[%clk
0:02:27.8]} 28... Qc7 {[%clk 0:01:41.2]} 29. Nc4 {[%clk 0:02:27]} 29... Rxb7
{[%clk 0:01:35.3]} 30. cxb7 {[%clk 0:02:26.7]} 30... Qxb7 {[%clk 0:01:35.8]} 31.
Nxa3 {[%clk 0:02:23.3]} 31... Qa7+ {[%clk 0:01:27.4]} 32. Kh1 {[%clk 0:02:22.9]}
32... Qxa3 {[%clk 0:01:26.2]} 33. Ra1 {[%clk 0:02:16.4]} 33... Qc5 {[%clk
0:01:25.8]} 34. Rab1 {[%clk 0:02:11.3]} 34... Rb8 {[%clk 0:01:23.4]} 35. Rdc1
{[%clk 0:02:08.8]} 35... Qb6 {[%clk 0:01:10.5]} 36. g3 {[%clk 0:02:04]} 36...
Ne7 {[%clk 0:01:02]} 37. Kg2 {[%clk 0:02:02]} 37... d5 {[%clk 0:01:00.4]} 38.
Qb4 {[%clk 0:01:56.4]} 38... Qb7 {[%clk 0:00:50.1]} 39. Qd6 {[%clk 0:01:53.4]}
39... Nf5 {[%clk 0:00:27]} 40. Qxe5 {[%clk 0:01:51.4]} 40... Nh6 {[%clk
0:00:19.8]} 41. Rc7 {[%clk 0:01:50.5]} 41... Qb6 {[%clk 0:00:19.9]} 42. Rc6
{[%clk 0:01:46.1]} 42... Qa7 {[%clk 0:00:17.6]} 43. b6 {[%clk 0:01:44.1]} 43...
Qa2+ {[%clk 0:00:17.2]} 44. Rb2 {[%clk 0:01:44.6]} 44... Qa4 {[%clk 0:00:17.2]}
45. Qxb8+ {[%clk 0:01:44.3]} 45... Kh7 {[%clk 0:00:17.6]} 46. Rxf6 {[%clk
0:01:39.7]} 46... gxf6 {[%clk 0:00:17]} 47. Qf4 {[%clk 0:01:39.4]} 47... f5
{[%clk 0:00:16.1]} 48. Qxa4 {[%clk 0:01:34.4]} 1-0

[Event "Late-Titled-Tuesday-Blitz-February-27-2024"]
[Site "Chess.com"]
[Date "2024.02.27"]
[Round "11"]
[White "Alexei_Gubajdullin"]
[Black "venturov"]
[Result "1-0"]
[WhiteElo "2664"]
[BlackElo "2471"]
[TimeControl "180+1"]
[EndTime "16:04:51 PST"]
[Termination "Alexei_Gubajdullin won by checkmate"]

1. d4 {[%clk 0:02:59.7]} 1... Nf6 {[%clk 0:02:59.9]} 2. Nf3 {[%clk 0:02:59.4]}
2... g6 {[%clk 0:03:00.2]} 3. Bf4 {[%clk 0:02:59.2]} 3... Bg7 {[%clk 0:02:58.9]}
4. e3 {[%clk 0:02:59.4]} 4... O-O {[%clk 0:02:59.2]} 5. Be2 {[%clk 0:02:59.8]}
5... c5 {[%clk 0:02:59.6]} 6. O-O {[%clk 0:02:59.9]} 6... cxd4 {[%clk
0:02:59.4]} 7. exd4 {[%clk 0:02:59]} 7... d6 {[%clk 0:02:59.8]} 8. c3 {[%clk
0:02:58.2]} 8... Nc6 {[%clk 0:02:56.8]} 9. Nbd2 {[%clk 0:02:57.9]} 9... Bd7
{[%clk 0:02:53.9]} 10. h3 {[%clk 0:02:57.4]} 10... a6 {[%clk 0:02:53.9]} 11. a4
{[%clk 0:02:57.1]} 11... Rb8 {[%clk 0:02:50.4]} 12. Nc4 {[%clk 0:02:55.9]} 12...
b5 {[%clk 0:02:46.6]} 13. axb5 {[%clk 0:02:54]} 13... axb5 {[%clk 0:02:47.5]}
14. Ne3 {[%clk 0:02:52.1]} 14... Qb6 {[%clk 0:02:25.4]} 15. d5 {[%clk
0:02:46.3]} 15... Na5 {[%clk 0:02:19.7]} 16. b4 {[%clk 0:02:45]} 16... Nc4
{[%clk 0:02:12]} 17. Bxc4 {[%clk 0:02:30.9]} 17... bxc4 {[%clk 0:02:12.9]} 18.
Nxc4 {[%clk 0:02:18.1]} 18... Qc7 {[%clk 0:02:13]} 19. Na5 {[%clk 0:02:10.1]}
19... Qxc3 {[%clk 0:02:09.8]} 20. Bd2 {[%clk 0:02:09.7]} 20... Qc7 {[%clk
0:01:53.6]} 21. Rc1 {[%clk 0:02:08.5]} 21... Qb6 {[%clk 0:01:53.2]} 22. Nc6
{[%clk 0:02:05.9]} 22... Nxd5 {[%clk 0:01:50.4]} 23. Nxb8 {[%clk 0:02:03.1]}
23... Rxb8 {[%clk 0:01:49]} 24. Qb3 {[%clk 0:01:56.1]} 24... e6 {[%clk
0:01:39.6]} 25. Ng5 {[%clk 0:01:37.1]} 25... Qd4 {[%clk 0:01:34.4]} 26. Rfd1
{[%clk 0:01:25.2]} 26... Qh4 {[%clk 0:01:23.4]} 27. Qf3 {[%clk 0:01:20.9]} 27...
Be8 {[%clk 0:01:08.4]} 28. Ne4 {[%clk 0:01:19.9]} 28... f5 {[%clk 0:00:34.5]}
29. Nxd6 {[%clk 0:01:15.1]} 29... Ba4 {[%clk 0:00:35.2]} 30. Re1 {[%clk
0:01:10.7]} 30... Nxb4 {[%clk 0:00:31.9]} 31. Rxe6 {[%clk 0:01:04.2]} 31... Nc2
{[%clk 0:00:18.2]} 32. Qd5 {[%clk 0:01:02]} 32... Bb3 {[%clk 0:00:15.7]} 33.
Re8# {[%clk 0:01:01.2]} 1-0